bitfinex/quotes_ETHUSD_20230905
["timestamp","ask_amount","ask_price","bid_price","bid_amount"]
[1693943736342,1.02381696,1633.9,1633.5,4.14581782]
[1693943736521,7.14413696,1633.9,1633.6,12.24243]
[1693943736724,2.14185178,1633.8,1633.6,18.36387]
[1693943736942,2.3151583,1633.8,1633.6,19.68487]
[1693943738544,2.3151583,1633.8,1633.7,1.06369492]
[1693943738747,2.3151583,1633.8,1633.7,26.0643771]
[1693943738924,2.3151583,1633.8,1633.7,28.27043624]
[1693943739450,0.17330652,1633.8,1633.7,28.27043624]
[1693943739645,2.14158967,1634.0,1633.7,28.27043624]
[1693943739949,2.14158967,1634.0,1633.9,1.321]
[1693943740171,2.14158967,1634.0,1633.9,13.56164]
[1693943743130,2.14158967,1634.0,1633.9,6.12032]
[1693943744613,2.14158967,1634.0,1633.8,12.24079]
[1693943746775,2.14158967,1634.0,1633.8,15.83677643]
[1693943749092,2.14158967,1634.0,1633.8,21.95747643]
[1693943750259,2.14158967,1634.0,1633.8,22.74950426]
[1693943750888,2.14158967,1634.0,1633.9,1.321]
[1693943751067,2.14158967,1634.0,1633.9,18.36096]
[1693943751267,2.14158967,1634.0,1633.9,6.12032]
[1693943759016,2.14158967,1634.0,1633.8,14.67857]
[1693943759225,2.96772364,1634.0,1633.8,14.67857]
[1693943760734,2.96772364,1634.0,1633.8,12.24097]
[1693943760911,2.96772364,1634.0,1633.8,6.12048]
[1693943761339,2.96772364,1634.0,1633.8,12.24118]
[1693943762608,2.14158967,1634.0,1633.8,18.36188]
[1693943762795,2.14158967,1634.0,1633.8,19.68288]
[1693943765028,2.14158967,1634.0,1633.8,12.24118]
[1693943765927,0.17339355,1633.9,1633.8,12.24118]
[1693943767546,0.17339355,1633.9,1633.8,13.30483945]
[1693943770233,0.17339355,1633.9,1633.8,20.74653945]
[1693943770433,0.17339355,1633.9,1633.8,22.34203327]
[1693943771499,0.17339355,1633.9,1633.8,22.98213332]
[1693943774035,0.17339355,1633.9,1633.8,23.9422834]
[1693943774233,0.17339355,1633.9,1633.8,16.86143332]
[1693943774448,0.17339355,1633.9,1633.8,13.9449395]
[1693943774637,0.17339355,1633.9,1633.8,14.26498953]
[1693943775636,0.17339355,1633.9,1633.8,15.54518964]
[1693943778279,0.58904187,1633.9,1633.8,15.54518964]
[1693943778565,0.58904187,1633.9,1633.8,9.73978335]
[1693943778735,0.58904187,1633.9,1633.8,7.82673664]
[1693943779602,0.58904187,1633.9,1633.8,9.42223046]
[1693943779884,0.58904187,1633.9,1633.8,7.82673664]
[1693943781552,0.58904187,1633.9,1633.8,7.18413945]
[1693943787520,0.58904187,1633.9,1633.8,6.12048]
[1693943792213,0.17339355,1633.9,1633.8,6.12048]
[1693943792800,0.17339355,1633.9,1633.8,12.24118]
[1693943800293,0.17339355,1633.9,1633.8,6.12048]
[1693943803391,0.17339355,1633.9,1633.8,12.24118]
[1693943804797,0.17339355,1633.9,1633.8,6.12048]
[1693943806533,0.17339355,1633.9,1633.8,12.24118]
[1693943808329,0.17339355,1633.9,1633.8,6.12048]
[1693943813061,0.58904187,1633.9,1633.8,6.12048]
[1693943813764,0.58904187,1633.9,1633.7,8.19991172]
[1693943814080,0.58904187,1633.9,1633.7,12.72509843]
[1693943814287,0.58904187,1633.9,1633.7,14.32077172]
[1693943815049,0.58904187,1633.9,1633.7,8.19991172]
[1693943818468,0.58904187,1633.9,1633.7,12.72530843]
[1693943818767,0.58904187,1633.9,1633.7,14.32098172]
[1693943818961,0.58904187,1633.9,1633.7,12.72530843]
[1693943819882,0.58904187,1633.9,1633.7,14.32102978]
[1693943827098,0.58904187,1633.9,1633.8,1.06378243]
[1693943827294,0.58904187,1633.9,1633.8,7.18448243]
[1693943827886,0.58904187,1633.9,1633.8,7.18448065]
[1693943828097,0.17339355,1633.9,1633.8,19.42588065]
[1693943828262,0.17339355,1633.9,1633.8,21.02155585]
[1693943833913,0.17339355,1633.9,1633.8,19.42588065]
[1693943840038,0.17339355,1633.9,1633.8,21.02155585]
[1693943840215,0.17339355,1633.9,1633.8,19.42588065]
[1693943845536,0.17339355,1633.9,1633.8,13.30518065]
[1693943849139,0.17339355,1633.9,1633.8,19.42588065]
[1693943849343,0.17339355,1633.9,1633.8,21.02155585]
[1693943852461,0.17339355,1633.9,1633.8,19.42588065]
[1693943852774,0.17339355,1633.9,1633.8,23.48308872]
[1693943852933,0.17339355,1633.9,1633.8,24.80408872]
[1693943854367,0.17339355,1633.9,1633.8,25.44668591]
[1693943857582,0.17339355,1633.9,1633.8,24.80408872]
[1693943863984,0.17339355,1633.9,1633.8,27.87110298]
[1693943864289,0.17339355,1633.9,1633.8,29.12415132]
[1693943868358,0.12339355,1633.9,1633.8,29.12415132]
[1693943869061,2.14158967,1634.0,1633.8,34.12415132]
[1693943869269,2.14158967,1634.0,1633.9,9.13888524]
[1693943869470,2.14158967,1634.0,1633.9,27.49984524]
[1693943869670,2.28449676,1634.0,1633.9,25.90417004]
[1693943869886,2.28449676,1634.0,1633.9,27.49964755]
[1693943870174,2.28449676,1634.0,1633.9,25.90417004]
[1693943870381,2.28449676,1634.0,1633.9,27.49965344]
[1693943871890,2.14158967,1634.0,1633.9,27.49965344]
[1693943872199,2.28462895,1634.0,1633.9,27.49965344]
[1693943873006,2.28462895,1634.0,1633.9,28.82065344]
[1693943873711,2.14158967,1634.0,1633.9,28.82065344]
[1693943874211,2.28472809,1634.0,1633.9,28.82065344]
[1693943876609,2.28472809,1634.0,1633.9,29.46325063]
[1693943881228,2.28472809,1634.0,1633.9,29.96198895]
[1693943883000,2.28472809,1634.0,1633.9,14.89990405]
[1693943885138,2.28472809,1634.0,1633.9,13.30442065]
[1693943885640,2.28472809,1634.0,1633.9,14.89988973]
[1693943885935,2.28472809,1634.0,1633.9,13.30442065]
[1693943886520,2.28472809,1634.0,1633.9,12.24064]
[1693943886725,2.28472809,1634.0,1633.9,13.30431352]
[1693943895436,2.28472809,1634.0,1633.9,13.79823687]
[1693943901549,2.28472809,1634.0,1633.9,13.30431352]
[1693943903068,2.28472809,1634.0,1633.9,12.24064]
[1693943904970,2.7036009,1634.0,1633.9,12.24064]
[1693943906058,2.7036009,1634.0,1633.9,6.12032]
[1693943907480,3.8844749,1634.0,1633.9,6.12032]
[1693943909252,3.8844749,1634.0,1633.7,2.7215986]
[1693943909452,3.8844749,1634.0,1633.6,6.76399719]
[1693943909453,21.15362049,1634.0,1633.6,6.76399719]
[1693943909765,2.11536205,1633.9,1633.7,5.0]
[1693943909970,14.35639205,1633.9,1633.6,6.12141]
[1693943910285,0.13641983,1633.8,1633.5,6.76423719]
[1693943910488,2.14198286,1633.7,1633.6,1.06384184]
[1693943910991,2.14198286,1633.7,1633.6,7.18525184]
[1693943911766,2.14198286,1633.7,1633.6,6.12141]
[1693943912479,2.14198286,1633.7,1633.5,12.24323]
[1693943912653,2.96825215,1633.7,1633.5,13.83873298]
[1693943912854,2.96825215,1633.7,1633.5,12.24323]
[1693943913256,2.96825215,1633.7,1633.5,14.33096676]
[1693943913493,2.96825215,1633.7,1633.5,12.73546378]
[1693943914159,2.96825215,1633.7,1633.5,6.61384378]
[1693943915090,4.93385215,1633.7,1633.5,6.61384378]
[1693943915908,0.13601537,1633.6,1633.5,6.61384378]
[1693943916108,0.13601537,1633.6,1633.5,7.6776925]
[1693943916272,4.10758286,1633.7,1633.5,7.6776925]
[1693943916464,4.10758286,1633.7,1633.5,6.61384378]
[1693943916465,5.13041215,1633.7,1633.5,6.61384378]
[1693943917584,5.13041215,1633.7,1633.5,6.12161]
[1693943919006,5.13041215,1633.7,1633.3,6.1223]
[1693943919007,19.41680712,1633.7,1633.3,6.1223]
[1693943919208,20.73780712,1633.7,1633.3,6.1223]
[1693943919772,18.59582426,1633.7,1633.3,6.1223]
[1693943919975,2.1423762,1633.4,1633.3,6.1223]
[1693943921568,8.2645662,1633.4,1633.1,6.12295]
[1693943921777,3.58104282,1633.4,1633.1,12.24627]
[1693943921976,5.51614282,1633.4,1633.1,12.24627]
[1693943925625,11.63835282,1633.4,1633.0,8.36201266]
[1693943925808,23.88277282,1633.4,1632.9,42.96142304]
[1693943926004,2.38827728,1633.3,1633.0,6.12348]
[1693943926250,8.51089728,1633.3,1633.0,6.12348]
[1693943926401,2.14263851,1633.2,1633.0,12.24717]
[1693943929590,2.14263851,1633.2,1633.0,20.30231115]
[1693943929791,2.14263851,1633.2,1633.1,1.06409112]
[1693943930034,2.14263851,1633.2,1633.1,20.50879308]
[1693943930211,2.14263851,1633.2,1633.1,22.71549552]
[1693943930212,1.50420799,1633.2,1633.1,22.71549552]
[1693943930544,1.50420799,1633.2,1633.1,24.03649552]
[1693943930995,1.64852425,1633.2,1633.1,24.03649552]
[1693943932128,1.64852425,1633.2,1633.1,22.10504437]
[1693943932330,1.50420799,1633.2,1633.1,18.36996]
[1693943932625,1.50420799,1633.2,1633.1,19.434056]
[1693943932833,1.64852425,1633.2,1633.1,18.36996]
[1693943934117,1.64852425,1633.2,1633.1,19.43405269]
[1693943934326,1.64852425,1633.2,1633.1,21.60133234]
[1693943938239,1.50420799,1633.2,1633.1,21.60133234]
[1693943938450,1.50420799,1633.2,1633.1,13.31073269]
[1693943938813,1.50420799,1633.2,1633.1,7.18741269]
[1693943939038,1.64852425,1633.2,1633.1,7.18741269]
[1693943939222,1.64852425,1633.2,1633.1,6.12332]
[1693943939935,1.50420799,1633.2,1633.1,6.12332]
[1693943940141,1.50420799,1633.2,1633.1,12.24664]
[1693943940446,1.85593879,1633.2,1632.9,9.68468217]
[1693943940637,1.85593879,1633.2,1633.1,6.12332]
[1693943941171,2.00011564,1633.2,1633.1,6.12332]
[1693943942346,2.00011564,1633.2,1633.0,13.84321628]
[1693943943118,2.00011564,1633.2,1633.0,7.71971628]
[1693943944748,2.00011564,1633.2,1633.0,6.1235]
[1693943946450,2.00011564,1633.2,1632.9,11.28089845]
[1693943946767,8.12308564,1633.2,1633.0,1.06415767]
[1693943946959,0.81230856,1633.1,1633.0,1.06415767]
[1693943947466,7.07916803,1633.1,1632.9,1.69621628]
[1693943947631,2.14290088,1633.0,1632.9,0.1]
[1693943947832,2.14290088,1633.0,1632.9,1.1642121]
[1693943948050,2.63998577,1633.0,1632.9,1.1642121]
[1693943948376,2.63998577,1633.0,1632.9,3.8642121]
[1693943951245,2.14290088,1633.0,1632.9,16.1123521]
[1693943951451,2.14290088,1633.0,1632.9,19.67216557]
[1693943952054,1.00778606,1633.0,1632.9,26.72423961]
[1693943952380,1.00778606,1633.0,1632.9,26.40479752]
[1693943952588,1.00778606,1633.0,1632.9,31.05471548]
[1693943952789,1.00778606,1633.0,1632.9,30.0945654]
[1693943953483,1.00778606,1633.0,1632.9,26.40479752]
[1693943954365,1.00778606,1633.0,1632.9,25.79434637]
[1693943955288,1.00778606,1633.0,1632.9,26.72423961]
[1693943957688,1.00778606,1633.0,1632.9,31.72423961]
[1693943957889,1.00778606,1633.0,1632.9,33.85255786]
[1693943958254,1.00778606,1633.0,1632.9,33.24210671]
[1693943958456,1.00778606,1633.0,1632.9,38.74770252]
[1693943959175,1.00778606,1633.0,1632.9,33.74770252]
[1693943959668,1.00778606,1633.0,1632.9,36.81471678]
[1693943961063,1.00778606,1633.0,1632.9,34.11471678]
[1693943961267,1.00778606,1633.0,1632.9,31.04770252]
[1693943961460,1.00778606,1633.0,1632.9,28.13316263]
[1693943961999,1.00778606,1633.0,1632.9,17.78369693]
[1693943962290,1.00778606,1633.0,1632.9,17.10464631]
[1693943962494,1.00778606,1633.0,1632.9,14.54827995]
[1693943962792,1.00778606,1633.0,1632.9,15.50843003]
[1693943963814,1.00778606,1633.0,1632.9,15.50869291]
[1693943964110,1.00778606,1633.0,1632.9,15.01471444]
[1693943964621,1.00778606,1633.0,1632.9,14.37250218]
[1693943965625,1.00778606,1633.0,1632.9,27.9542073]
[1693943965923,1.00778606,1633.0,1632.9,33.63949387]
[1693943966122,1.00778606,1633.0,1632.9,35.76781212]
[1693943967490,1.00778606,1633.0,1632.9,36.7314753]
[1693943967824,1.00778606,1633.0,1632.9,36.73152717]
[1693943968721,1.00778606,1633.0,1632.9,35.45132706]
[1693943969020,1.00778606,1633.0,1632.9,29.32725706]
[1693943969195,1.00778606,1633.0,1632.9,19.42160168]
[1693943969394,1.00778606,1633.0,1632.9,17.29328343]
[1693943969599,1.00778606,1633.0,1632.9,15.69706715]
[1693943969828,1.00778606,1633.0,1632.9,21.82113715]
[1693943970115,1.00778606,1633.0,1632.9,23.41735343]
[1693943970524,1.00778606,1633.0,1632.9,22.09635343]
[1693943971721,1.00778606,1633.0,1632.9,23.41735343]
[1693943972726,1.00778606,1633.0,1632.9,24.05998386]
[1693943973719,1.00778606,1633.0,1632.9,26.56380883]
[1693943973926,1.00778606,1633.0,1632.9,35.74115622]
[1693943974091,1.00778606,1633.0,1632.9,34.72301907]
[1693943974434,1.00778606,1633.0,1632.9,26.41735343]
[1693943974609,1.00778606,1633.0,1632.9,20.9359073]
[1693943975221,1.00778606,1633.0,1632.9,27.0599773]
[1693943975426,1.00778606,1633.0,1632.9,20.29328343]
[1693943975592,1.00778606,1633.0,1632.9,18.97228343]
[1693943975788,1.00778606,1633.0,1632.9,19.61490641]
[1693943975988,1.00778606,1633.0,1632.9,25.73897641]
[1693943976189,1.15825472,1633.0,1632.9,25.73898447]
[1693943976386,1.00778606,1633.0,1632.9,22.73898447]
[1693943976826,1.1584067,1633.0,1632.9,22.73898447]
[1693943977130,1.1584067,1633.0,1632.9,16.61491447]
[1693943977305,1.1584067,1633.0,1632.9,15.01869819]
[1693943977505,1.1584067,1633.0,1632.9,16.61491447]
[1693943977925,1.1584067,1633.0,1632.9,14.05498314]
[1693943978124,1.1584067,1633.0,1632.9,15.65119942]
[1693943978331,1.1584067,1633.0,1632.9,14.05498314]
[1693943978830,0.87416439,1633.0,1632.9,14.05498314]
[1693943979034,0.87416439,1633.0,1632.9,20.17905314]
[1693943979237,0.87416439,1633.0,1632.9,15.65119942]
[1693943979530,0.87416439,1633.0,1632.9,20.17905314]
[1693943979729,0.87416439,1633.0,1632.9,14.05498314]
[1693943980654,0.87416439,1633.0,1632.9,15.01869819]
[1693943981158,0.87416439,1633.0,1632.9,21.14276819]
[1693943982722,0.87416439,1633.0,1632.9,15.01869819]
[1693943983028,0.87416439,1633.0,1632.9,21.14276819]
[1693943983231,0.87416439,1633.0,1632.9,32.7412876]
[1693943983427,0.72354375,1633.0,1632.9,33.35173875]
[1693943983626,0.72354375,1633.0,1632.9,35.480057]
[1693943983935,0.72354375,1633.0,1632.9,36.76025711]
[1693943985663,0.72354375,1633.0,1632.9,25.59910439]
[1693943985848,0.72354375,1633.0,1632.9,22.14978614]
[1693943986726,0.87031924,1633.0,1632.9,22.14978614]
[1693943987223,0.87031924,1633.0,1632.9,16.61531572]
[1693943987429,0.87031924,1633.0,1632.9,15.01909944]
[1693943989077,0.87031924,1633.0,1632.9,27.3208395]
[1693943989247,0.87031924,1633.0,1632.9,33.22716208]
[1693943989444,0.72354375,1633.0,1632.9,35.35548033]
[1693943990465,0.72354375,1633.0,1632.9,31.72334174]
[1693943990665,0.72354375,1633.0,1632.9,29.59502349]
[1693943995770,0.72354375,1633.0,1632.9,23.47095349]
[1693943998594,0.86922394,1633.0,1632.9,23.47095349]
[1693943998802,0.72354375,1633.0,1632.9,23.47095349]
[1693943999003,0.72354375,1633.0,1632.9,17.93645854]
[1693943999302,0.72354375,1633.0,1632.9,15.01924226]
[1693943999709,0.86967991,1633.0,1632.9,15.01924226]
[1693944000686,0.86967991,1633.0,1632.9,21.19689813]
[1693944000887,0.86967991,1633.0,1632.9,22.79319768]
[1693944001210,0.86967991,1633.0,1632.9,16.61552941]
[1693944001413,0.86967991,1633.0,1632.9,22.51789404]
[1693944001607,0.86967991,1633.0,1632.9,24.11419359]
[1693944003406,0.86967991,1633.0,1632.9,23.47101848]
[1693944003717,0.86967991,1633.0,1632.9,24.11416468]
[1693944004413,0.86967991,1633.0,1632.9,23.47101848]
[1693944005120,0.86967991,1633.0,1632.9,24.11419506]
[1693944005419,0.86967991,1633.0,1632.9,33.39011758]
[1693944005582,0.86967991,1633.0,1632.9,35.48573263]
[1693944006217,0.86967991,1633.0,1632.9,39.832947]
[1693944006515,0.86967991,1633.0,1632.9,38.55274689]
[1693944006692,0.86967991,1633.0,1632.9,39.832947]
[1693944007700,0.86967991,1633.0,1632.9,38.86923195]
[1693944009316,0.86967991,1633.0,1632.9,41.86923195]
[1693944009521,0.86967991,1633.0,1632.9,42.19691887]
[1693944009905,0.23123596,1633.0,1632.9,47.19691887]
[1693944014229,0.0850998,1633.0,1632.9,47.19691887]
[1693944015013,0.0850998,1633.0,1632.9,48.48231488]
[1693944015210,0.0850998,1633.0,1632.9,44.2139286]
[1693944015411,0.0850998,1633.0,1632.9,48.48084158]
[1693944015629,1.180874,1633.6,1633.0,7.743]
[1693944015828,1.916,1633.5,1633.4,1.321]
[1693944016015,0.17339558,1633.5,1633.4,11.4230038]
[1693944016415,0.17339558,1633.5,1633.4,12.24438]
[1693944016602,0.17339558,1633.5,1633.4,18.36657]
[1693944017922,0.17339558,1633.5,1633.4,20.75152477]
[1693944018254,0.17339558,1633.5,1633.4,43.8003761]
[1693944018420,3.32300986,1633.6,1633.4,48.28546767]
[1693944018602,1.180874,1633.6,1633.5,34.76681973]
[1693944018802,2.14172072,1633.9,1633.5,41.10466034]
[1693944019003,2.14172072,1633.9,1633.8,25.8038]
[1693944019237,2.14172072,1633.9,1633.8,31.45119426]
[1693944019442,1.9064,1634.2,1633.8,34.45119426]
[1693944019607,2.14145864,1634.1,1634.0,18.35985]
[1693944021244,2.14145864,1634.1,1634.0,19.68085]
[1693944023144,2.14145864,1634.1,1633.9,12.24042]
[1693944023461,2.14145864,1634.1,1633.8,6.12065]
[1693944023605,2.14145864,1634.1,1633.9,6.12032]
[1693944023812,2.14145864,1634.1,1633.8,12.24126]
[1693944024037,6.11927,1634.2,1633.8,12.24126]
[1693944024224,2.14172072,1633.9,1633.8,12.24126]
[1693944025807,2.14172072,1633.9,1633.8,6.1206]
[1693944026441,2.14172072,1633.9,1633.8,12.2413]
[1693944026945,2.14172072,1633.9,1633.7,6.12082]
[1693944027646,12.24038,1634.0,1633.7,3.97883714]
[1693944027842,1.224038,1633.9,1633.6,6.12141]
[1693944028042,1.224038,1633.9,1633.4,39.552]
[1693944028043,2.14198286,1633.7,1633.4,12.24391]
[1693944028371,2.14198286,1633.7,1633.5,6.12182]
[1693944028715,9.18793426,1633.8,1633.5,6.12182]
[1693944030218,15.30882426,1633.8,1633.5,6.12182]
[1693944030420,1.53088243,1633.7,1633.5,6.12182]
[1693944030624,7.65198243,1633.7,1633.4,12.24392]
[1693944030948,2.14224507,1633.5,1633.4,12.24392]
[1693944040465,2.14224507,1633.5,1633.4,39.80052]
[1693944041354,2.14224507,1633.5,1633.4,42.86232]
[1693944048950,2.14224507,1633.5,1633.4,50.30551]
[1693944049139,2.14224507,1633.5,1633.4,56.67801554]
[1693944049341,2.14224507,1633.5,1633.4,58.27386406]
[1693944052991,2.14224507,1633.5,1633.4,52.96530045]
[1693944060872,2.14224507,1633.5,1633.4,53.60732412]
[1693944062004,2.14224507,1633.5,1633.4,52.96530045]
[1693944066110,2.14224507,1633.5,1633.4,45.52211045]
[1693944066280,2.14224507,1633.5,1633.4,37.80425193]
[1693944069111,2.14224507,1633.5,1633.4,39.40018138]
[1693944069483,2.14224507,1633.5,1633.4,33.27827138]
[1693944069686,2.14224507,1633.5,1633.4,39.40046138]
[1693944070701,2.14224507,1633.5,1633.4,33.27827138]
[1693944071228,2.96861558,1633.5,1633.4,33.27827138]
[1693944071887,2.96861558,1633.5,1633.4,31.68234193]
[1693944073010,10.41143558,1633.5,1633.4,30.6184]
[1693944073212,23.29630691,1633.5,1633.4,30.6184]
[1693944074157,21.15406184,1633.5,1633.4,30.6184]
[1693944074341,24.2210761,1633.5,1633.4,28.47563032]
[1693944074709,24.2210761,1633.5,1633.4,26.33286064]
[1693944075143,27.8830761,1633.5,1633.4,24.18995976]
[1693944075841,27.8830761,1633.5,1633.4,22.04705888]
[1693944076019,27.8830761,1633.5,1633.4,19.904158]
[1693944076624,27.8830761,1633.5,1633.4,17.76125712]
[1693944077021,27.8830761,1633.5,1633.4,15.61835624]
[1693944077530,27.8830761,1633.5,1633.4,13.47545536]
[1693944077907,27.24184477,1633.5,1633.4,13.47545536]
[1693944078106,30.24184477,1633.5,1633.4,11.33255448]
[1693944078547,30.24184477,1633.5,1633.4,9.1896536]
[1693944079015,30.24184477,1633.5,1633.4,7.04675272]
[1693944079346,30.8830761,1633.5,1633.4,4.90385184]
[1693944079850,30.24184477,1633.5,1633.4,2.76081976]
[1693944080336,30.24184477,1633.5,1633.4,0.61778768]
[1693944080729,3.0,1633.4,1632.9,4.6985656]
[1693944080925,21.43529426,1633.3,1632.8,18.06834142]
[1693944081128,2.14352943,1633.2,1632.9,1.06419859]
[1693944081329,1.07883349,1632.9,1632.8,11.94407142]
[1693944081648,1.07883349,1632.9,1632.8,14.97618499]
[1693944084130,1.07883349,1632.9,1632.8,23.03207614]
[1693944085052,1.07883349,1632.9,1632.8,21.43581133]
[1693944085217,1.07883349,1632.9,1632.8,23.03212154]
[1693944087953,1.07883349,1632.9,1632.8,22.39009787]
[1693944088458,1.07883349,1632.9,1632.8,23.03212154]
[1693944089259,1.07883349,1632.9,1632.8,22.39009787]
[1693944089760,1.07883349,1632.9,1632.8,23.03212154]
[1693944091879,1.07883349,1632.9,1632.7,14.7004]
[1693944092061,1.07883349,1632.9,1632.7,16.29684248]
[1693944092261,1.07883349,1632.9,1632.7,16.79717344]
[1693944093302,1.07883349,1632.9,1632.7,16.29684248]
[1693944094153,1.99315284,1632.9,1632.7,10.17224248]
[1693944094352,8.11731284,1632.9,1632.6,12.25007]
[1693944094683,8.11731284,1632.9,1632.6,6.76701367]
[1693944094888,8.11731284,1632.9,1632.6,8.36346615]
[1693944095387,8.11731284,1632.9,1632.6,14.48865615]
[1693944096906,1.99315284,1632.9,1632.6,14.48865615]
[1693944097051,1.07883349,1632.9,1632.6,14.48865615]
[1693944101295,1.07883349,1632.9,1632.7,1.06432585]
[1693944101465,1.07883349,1632.9,1632.7,7.18885585]
[1693944101667,1.07883349,1632.9,1632.7,6.12453]
[1693944108604,7.20295349,1632.9,1632.7,6.12453]
[1693944108785,8.72968484,1632.9,1632.7,6.12453]
[1693944109699,8.72968484,1632.9,1632.8,1.06433935]
[1693944110083,8.72968484,1632.9,1632.7,6.12453]
[1693944111706,8.72968484,1632.9,1632.8,1.06435001]
[1693944112107,8.72968484,1632.9,1632.7,6.12453]
[1693944112299,0.87296848,1632.8,1632.6,7.72144248]
[1693944112498,14.85396484,1632.9,1632.7,1.06441987]
[1693944113005,2.14329455,1632.7,1632.6,6.12499]
[1693944113170,2.14329455,1632.7,1632.6,7.18940398]
[1693944113804,2.14329455,1632.7,1632.6,7.83142765]
[1693944113982,2.14329455,1632.7,1632.6,9.42788013]
[1693944114609,2.14329455,1632.7,1632.6,7.83141838]
[1693944114996,2.14329455,1632.7,1632.6,9.42802545]
[1693944115509,2.14329455,1632.7,1632.6,21.67840545]
[1693944115678,2.14329455,1632.7,1632.6,24.84979775]
[1693944116677,1.50469682,1632.7,1632.6,38.35750452]
[1693944116882,0.36946223,1632.7,1632.6,50.25080804]
[1693944117312,6.223e-05,1632.7,1632.6,48.96551374]
[1693944117500,6.223e-05,1632.7,1632.6,50.54741374]
[1693944117678,6.223e-05,1632.7,1632.6,55.54741374]
[1693944118784,6.223e-05,1632.7,1632.6,58.15541241]
[1693944119383,14.11824,1633.4,1632.6,58.15541241]
[1693944119609,2.14294943,1633.0,1632.9,0.64213397]
[1693944119918,2.14294943,1633.0,1632.9,19.01423397]
[1693944120096,2.14294943,1633.0,1632.9,20.07863868]
[1693944120297,2.14294943,1633.0,1632.9,21.67524575]
[1693944123517,2.14294943,1633.0,1632.9,9.42710575]
[1693944124687,2.14294943,1633.0,1632.9,8.78497178]
[1693944126305,2.14294943,1633.0,1632.9,14.90904178]
[1693944126920,2.14294943,1633.0,1632.9,24.86298545]
[1693944129191,2.14294943,1633.0,1632.9,22.35411178]
[1693944129393,2.14294943,1633.0,1632.9,1.06440471]
[1693944129592,2.14294943,1633.0,1632.8,4.04653736]
[1693944129593,8.26663943,1633.0,1632.8,4.04653736]
[1693944129793,2.14294943,1633.0,1632.8,8.57454]
[1693944130214,2.14294943,1633.0,1632.8,14.69898]
[1693944130418,2.14294943,1633.0,1632.8,16.29541736]
[1693944130721,2.14294943,1633.0,1632.8,10.17097736]
[1693944131323,2.14294943,1633.0,1632.8,16.29541736]
[1693944131524,2.14294943,1633.0,1632.8,10.17097736]
[1693944131698,2.14294943,1633.0,1632.8,14.69898]
[1693944131899,2.14294943,1633.0,1632.8,22.41985736]
[1693944132228,2.14294943,1633.0,1632.8,14.69898]
[1693944132439,2.14294943,1633.0,1632.8,16.29541909]
[1693944132594,2.14294943,1633.0,1632.8,26.06741887]
[1693944132798,2.14294943,1633.0,1632.9,1.06426028]
[1693944132999,2.14294943,1633.0,1632.9,13.31240028]
[1693944133812,1687.93835573,1632.7,1632.6,14.90092216]
[1693944133999,1687.93835573,1632.7,1632.6,36.18828328]
[1693944134599,1687.93835573,1632.7,1632.6,34.60638328]
[1693944135134,1687.93835573,1632.7,1632.6,52.98195328]
[1693944142851,1687.93835573,1632.7,1632.6,55.11047096]
[1693944143328,1687.93835573,1632.7,1632.6,54.49771674]
[1693944146465,1687.93835573,1632.7,1632.6,48.31974036]
[1693944146663,1687.93835573,1632.7,1632.6,49.28380399]
[1693944147358,1687.93835573,1632.7,1632.6,48.31974036]
[1693944147762,1687.93835573,1632.7,1632.6,49.28379811]
[1693944147999,1687.93835573,1632.7,1632.6,24.54440385]
[1693944148133,1694.07238425,1632.7,1632.6,21.13161823]
[1693944148334,1694.07238425,1632.7,1632.6,14.32816882]
[1693944148964,1694.07238425,1632.7,1632.6,20.45335882]
[1693944149136,1694.07238425,1632.7,1632.6,19.48930107]
[1693944149730,1694.07238425,1632.7,1632.6,14.48930107]
[1693944149934,1694.07238425,1632.7,1632.6,12.89292059]
[1693944150530,1694.07238425,1632.7,1632.6,6.76773059]
[1693944150934,1694.07238425,1632.7,1632.6,12.89292059]
[1693944152184,1694.07238425,1632.7,1632.6,13.89292059]
[1693944152348,1687.93835573,1632.7,1632.6,15.48930107]
[1693944153774,1687.93835573,1632.7,1632.6,16.55364548]
[1693944159295,1687.93835573,1632.7,1632.6,13.89292059]
[1693944159454,1687.93835573,1632.7,1632.6,14.95726525]
[1693944159889,1687.93835573,1632.7,1632.6,16.55378225]
[1693944177855,1687.93835573,1632.7,1632.6,13.89292059]
[1693944178156,1687.93835573,1632.7,1632.6,14.95726638]
[1693944178320,1687.93835573,1632.7,1632.6,16.55378506]
[1693944183226,1687.93835573,1632.7,1632.6,17.51784281]
[1693944184063,1687.93835573,1632.7,1632.6,16.55378506]
[1693944184359,1687.93835573,1632.7,1632.6,17.51784281]
[1693944184659,1686.93835573,1632.7,1632.6,17.51784281]
[1693944186152,1693.07238425,1632.7,1632.6,11.39265281]
[1693944186352,1693.07238425,1632.7,1632.6,2.06434579]
[1693944186772,1693.07238425,1632.7,1632.6,1.0]
[1693944187156,1.14342581,1632.6,1632.5,6.1255]
[1693944187483,1.14342581,1632.6,1632.5,1.06447133]
[1693944187681,7.27745433,1632.6,1632.5,7.19004133]
[1693944188673,7.27745433,1632.6,1632.5,14.91213001]
[1693944188838,7.27745433,1632.6,1632.5,16.85400952]
[1693944190068,7.27745433,1632.6,1632.5,10.72843952]
[1693944196976,7.27745433,1632.6,1632.5,9.41145701]
[1693944197276,7.27745433,1632.6,1632.5,7.81493833]
[1693944198081,7.23152733,1632.6,1632.5,7.81493833]
[1693944199648,7.23152733,1632.6,1632.5,9.41145701]
[1693944199848,7.23152733,1632.6,1632.5,7.81493833]
[1693944203372,1.09749881,1632.6,1632.5,13.94050833]
[1693944203573,1.09749881,1632.6,1632.5,22.98359701]
[1693944205079,1.09749881,1632.6,1632.5,23.6260275]
[1693944211125,1.09749881,1632.6,1632.5,22.3050275]
[1693944213021,1.09749881,1632.6,1632.5,16.1794575]
[1693944213335,7.23152733,1632.6,1632.5,10.72843952]
[1693944213550,7.23152733,1632.6,1632.5,9.13192084]
[1693944214325,7.23152733,1632.6,1632.5,10.72843952]
[1693944220219,1.09749881,1632.6,1632.5,10.72843952]
[1693944220942,1.09749881,1632.6,1632.5,16.85400952]
[1693944221309,1.09749881,1632.6,1632.5,15.53702701]
[1693944223427,1.09749881,1632.6,1632.5,13.94050833]
[1693944223616,1.09749881,1632.6,1632.5,15.53702701]
[1693944224653,1.09749881,1632.6,1632.5,16.1797676]
[1693944226545,1.09749881,1632.6,1632.5,15.53702701]
[1693944227116,1.09749881,1632.6,1632.5,16.1797676]
[1693944229450,1.09749881,1632.6,1632.5,15.5548706]
[1693944239142,1.09749881,1632.6,1632.5,9.4293006]
[1693944239342,1.09749881,1632.6,1632.5,7.83278192]
[1693944241170,1.09749881,1632.6,1632.5,24.81541064]
[1693944241371,1.09749881,1632.6,1632.5,28.76918873]
[1693944244471,1.09749881,1632.6,1632.5,33.76918873]
[1693944244677,1.09749881,1632.6,1632.5,35.89770641]
[1693944245477,1.09749881,1632.6,1632.5,36.54109867]
[1693944246275,1.09749881,1632.6,1632.5,33.44852324]
[1693944247482,1.09749881,1632.6,1632.5,13.78656001]
[1693944247676,1.09749881,1632.6,1632.5,7.19004133]
[1693944248172,1.09749881,1632.6,1632.5,13.31561133]